[Event "Meister gegen Talente NSV-II"]
[Site "Emanuel Lasker Arena"]
[Date "2020.11.07"]
[Round "1.1"]
[White "Johvon"]
[Black "Christiqn"]
[Result "1/2-1/2"]
[WhiteElo "1620"]
[BlackElo "1620"]
[Annotator "NA RC"]
[PlyCount "131"]
[EventDate "2020.11.07"]
[EventType "match (rapid)"]
[TimeControl "900+5"]

1. d4 {[%emt 0:00:04]} d5 {[%emt 0:00:02]} 2. c4 {[%emt 0:00:01]} e6 {[%emt 0:00:01]} 3. Nc3 {[%emt 0:00:02]} c6 {[%emt 0:00:01]} 4. Nf3 {[%emt 0:00:01]} dxc4 {[%emt 0:00:00]} 5. a4 {[%emt 0:00:01]} Bb4 {[%emt 0:00:02]} 6. e3 {[%emt 0:00:02]} b5 {[%emt 0:00:01]} 7. Bd2 {[%emt 0:00:03]} a5 {[%emt 0:00:02]} 8. axb5 {[%emt 0:00:02]} Bxc3 {[%emt 0:00:01]} 9. Bxc3 {[%emt 0:00:00]} cxb5 {[%emt 0:00:00]} 10. b3 {[%emt 0:00:01]} Bb7 {[%emt 0:00:02]} 11. bxc4 {[%emt 0:00:01]} b4 {[%emt 0:00:00]} 12. Bb2 {[%emt 0:00:00]} Nf6 {[%emt 0:00:03]} 13. Bd3 {[%emt 0:00:44]} O-O {[%emt 0:00:05]} 14. O-O {[%emt 0:00:03]} Nbd7 {[%emt 0:00:04]} 15. Nd2 {[%emt 0:00:18]} Qc7 {[%emt 0:00:19]} 16. e4 {[%emt 0:00:44]} e5 {[%emt 0:00:07]} 17. d5 {[%emt 0:00:04]} Nc5 {[%emt 0:00:09]} 18. Bc2 {[%emt 0:00:11]} Rfe8 {[%emt 0:00:34]} 19. Ra2 {[%emt 0:00:38]} Qb6 {[%emt 0:01:25]} 20. Ba4 {[%emt 0:02:10]} Nfd7 {[%emt 0:00:52]} 21. Bb5 {[%emt 0:04:20]} Ba6 {[%emt 0:03:55]} 22. Bc6 {[%emt 0:00:07]} Ra7 {[%emt 0:01:09]} 23. Qa1 {[%emt 0:00:30]} Bb7 {[%emt 0:00:13]} 24. Bxb7 {[%emt 0:00:08]} Nxb7 {[%emt 0:00:08]} 25. Nb3 {[%emt 0:00:07]} f6 {[%emt 0:00:06]} 26. Bc1 {[%emt 0:00:54]} Ndc5 {[%emt 0:01:30]} 27. Be3 {[%emt 0:00:52]} Rea8 {[%emt 0:00:41]} 28. Ra4 {[%emt 0:00:45]} Qc7 {[%emt 0:01:04]} 29. Qa2 {[%emt 0:00:24]} Nxe4 {[%emt 0:00:51]} 30. Bxa7 {[%emt 0:01:49]} Nc3 {[%emt 0:00:37]} 31. Qa1 {[%emt 0:00:03]} Qxc4 {[%emt 0:00:35]} 32. Nxa5 {[%emt 0:00:22]} Qxd5 {[%emt 0:00:22]} 33. Rxb4 {[%emt 0:00:46]} Ne2+ {[%emt 0:00:04]} 34. Kh1 {[%emt 0:00:03]} Nxa5 {[%emt 0:00:07]} 35. Rd1 {[%emt 0:00:29]} Nd4 {[%emt 0:02:14]} 36. Bxd4 {[%emt 0:00:33]} Nb3 {[%emt 0:00:10]} 37. Ba7 {[%emt 0:00:21]} Nxa1 {[%emt 0:00:22]} 38. Rxd5 {[%emt 0:00:02]} Rxa7 {[%emt 0:00:06]} 39. Rc5 {[%emt 0:00:18] .} Nc2 {[%emt 0:00:02]} 40. Rb8+ {[%emt 0:00:01]} Kf7 {[%emt 0:00:02]} 41. g3 {[%emt 0:00:01]} Nd4 {[%emt 0:00:01]} 42. Rcc8 {[%emt 0:00:01]} Ne6 {[%emt 0:00:01]} 43. Rh8 {[%emt 0:00:02]} h6 {[%emt 0:00:02]} 44. Ra8 {[%emt 0:00:03]} Rd7 {[%emt 0:00:02]} 45. Rhb8 {[%emt 0:00:03]} Kg6 {[%emt 0:00:04]} 46. Ra2 {[%emt 0:00:02]} h5 {[%emt 0:00:01]} 47. Kg2 {[%emt 0:00:04]} Ng5 {[%emt 0:00:06]} 48. h4 {[%emt 0:00:04]} Ne6 {[%emt 0:00:02]} 49. Rb6 {[%emt 0:00:03]} Kf7 {[%emt 0:00:04]} 50. Rab2 {[%emt 0:00:04]} Rd1 {[%emt 0:00:27]} 51. Rb7+ {[%emt 0:00:04]} Kg6 {[%emt 0:00:01]} 52. R7b6 {[%emt 0:00:07]} Kf7 {[%emt 0:00:02]} 53. Ra6 {[%emt 0:00:01]} Rd7 {[%emt 0:00:04]} 54. Rba2 {[%emt 0:00:04]} Rd1 {[%emt 0:00:05]} 55. Ra7+ {[%emt 0:00:03]} Kg6 {[%emt 0:00:02]} 56. R2a6 {[%emt 0:00:04]} Nd4 {[%emt 0:00:08]} 57. Re7 {[%emt 0:00:05]} Re1 {[%emt 0:00:05]} 58. Raa7 {[%emt 0:00:05]} Nf5 {[%emt 0:00:01]} 59. Reb7 {[%emt 0:00:08]} Re2 {[%emt 0:00:10]} 60. Kf1 {[%emt 0:00:04]} Rc2 {[%emt 0:00:03]} 61. Rc7 {[%emt 0:00:05]} Rb2 {[%emt 0:00:02]} 62. Kg2 {[%emt 0:00:08]} e4 {[%emt 0:00:03]} 63. Rab7 {[%emt 0:00:09]} Ra2 {[%emt 0:00:04]} 64. Ra7 {[%emt 0:00:16]} Rb2 {[%emt 0:00:02]} 65. Rcb7 {[%emt 0:00:01]} Rc2 {[%emt 0:00:06]} 66. Rc7 {[%emt 0:00:03] Johvon bietet Remis (Lag: Av=0.58s, max=1.3s)} 1/2-1/2